bitfinex-derivatives/quotes_BTCF0:USTF0_20251119
["timestamp","ask_amount","ask_price","bid_price","bid_amount"]
[1763564227371,0.05606,91596.0,91570.0,0.01399]
[1763564227574,0.1092773,91577.0,91576.0,0.04554]
[1763564227962,0.3608,91582.0,91576.0,0.04554]
[1763564228168,0.1092722,91581.0,91580.0,0.15700993]
[1763564228779,0.1648827,91572.0,91571.0,0.00016375]
[1763564229075,0.5256827,91572.0,91571.0,0.00016375]
[1763564233878,0.1518063,91554.0,91553.0,0.1093042]
[1763564234073,0.02105,91557.0,91556.0,0.1548416]
[1763564234268,0.4164,91572.0,91571.0,0.1092839]
[1763564234471,0.3608,91572.0,91571.0,0.1548239]
[1763564234784,0.3608,91590.0,91589.0,0.1548024]
[1763564235469,0.0425,91590.0,91589.0,0.1548024]
[1763564235669,0.3608,91595.0,91594.0,0.1547964]
[1763564235870,0.00016384,91599.0,91598.0,0.1686816]
[1763564236382,0.04266384,91599.0,91598.0,0.1547916]
[1763564237170,0.1303052,91595.0,91594.0,0.04554]
[1763564237581,0.1517552,91595.0,91594.0,0.04554]
[1763564237790,0.1517552,91595.0,91594.0,0.02246]
[1763564237981,0.15176,91591.0,91590.0,0.00219803]
[1763564238282,0.51256,91591.0,91590.0,0.00219803]
[1763564238476,0.4033,91591.0,91590.0,0.00219803]
[1763564238883,0.51256,91591.0,91590.0,0.02465803]
[1763564239074,0.4033,91591.0,91590.0,0.04773803]
[1763564239878,0.00116384,91599.0,91598.0,0.1547916]
[1763564240083,0.00016384,91599.0,91598.0,0.1547916]
[1763564241280,0.00116384,91599.0,91598.0,0.1547916]
[1763564241784,0.00116384,91599.0,91592.0,0.1092584]
[1763564241785,0.1092519,91598.0,91592.0,0.1092584]
[1763564241984,0.02105,91595.0,91594.0,0.1317154]
[1763564242385,0.02105,91595.0,91594.0,0.1547954]
[1763564243185,0.0425,91591.0,91590.0,0.11145813]
[1763564243486,0.02105,91597.0,91596.0,0.1317135]
[1763564243785,0.00016384,91599.0,91598.0,0.04554]
[1763564244487,0.00016384,91599.0,91598.0,0.40634]
[1763564246073,0.00016384,91599.0,91598.0,0.40734]
[1763564246684,0.00016384,91599.0,91598.0,0.40834]
[1763564247174,0.00016384,91599.0,91598.0,0.04654]
[1763564247380,0.00016384,91599.0,91598.0,0.51342]
[1763564247784,0.00027291,91606.0,91605.0,0.1550033]
[1763564247983,0.3608,91620.0,91619.0,0.1549866]
[1763564248180,0.40471,91620.0,91619.0,0.04576]
[1763564248886,0.3608,91620.0,91619.0,0.04576]
[1763564249087,0.40471,91620.0,91619.0,0.04576]
[1763564249483,0.40471,91620.0,91618.0,0.10608]
[1763564249685,0.1531366,91619.0,91618.0,0.10608]
[1763564249884,0.1531462,91611.0,91610.0,0.13438838]
[1763564250085,0.1531462,91611.0,91610.0,0.24042838]
[1763564250282,0.1531462,91611.0,91610.0,0.00016375]
[1763564250283,0.5139462,91611.0,91610.0,0.00016375]
[1763564251485,0.1531628,91597.0,91596.0,0.10604]
[1763564251792,0.1092451,91604.0,91580.0,0.05835116]
[1763564251793,0.1555783,91584.0,91580.0,0.05835116]
[1763564252094,0.04631,91584.0,91583.0,0.26006825]
[1763564252995,0.38391,91589.0,91588.0,0.1539236]
[1763564253295,0.00016375,91593.0,91592.0,0.1539188]
[1763564254295,0.02327375,91593.0,91592.0,0.04466]
[1763564254594,0.00016375,91593.0,91592.0,0.04466]
[1763564255792,0.3608,91614.0,91598.0,0.1539116]
[1763564255990,0.3608,91614.0,91613.0,0.1538937]
[1763564256198,0.05155684,91622.0,91621.0,0.1538842]
[1763564256906,0.05155684,91622.0,91621.0,0.04466]
[1763564257100,0.05155684,91622.0,91620.0,0.00219803]
[1763564257101,0.1555342,91621.0,91620.0,0.00219803]
[1763564257800,0.1555342,91621.0,91612.0,0.10620375]
[1763564257801,0.1555438,91613.0,91612.0,0.00016375]
[1763564258101,0.5163438,91613.0,91612.0,0.00016375]
[1763564258300,0.40711,91613.0,91612.0,0.00016375]
[1763564259101,0.1092467,91603.0,91595.0,0.04466]
[1763564259301,0.1092467,91603.0,91602.0,0.04466]
[1763564259505,0.1555567,91603.0,91602.0,0.04466]
[1763564260099,0.04631,91601.0,91600.0,0.00219803]
[1763564261005,0.04631,91601.0,91600.0,0.04685803]
[1763564261615,0.02311,91601.0,91600.0,0.04685803]
[1763564262203,0.3608,91605.0,91604.0,0.1539045]
[1763564262396,0.40711,91605.0,91604.0,0.04466]
[1763564262997,0.38391,91605.0,91604.0,0.04466]
[1763564263302,0.3608,91605.0,91604.0,0.04466]
[1763564263703,0.00016375,91612.0,91611.0,0.1538961]
[1763564264709,0.1555461,91611.0,91610.0,0.04685803]
[1763564265098,0.1555461,91611.0,91610.0,0.00219803]
[1763564266004,0.04631,91611.0,91610.0,0.13413533]
[1763564266307,0.04731,91611.0,91610.0,0.15609533]
[1763564266515,0.001,91611.0,91610.0,0.15609533]
[1763564267212,0.0007272,91611.0,91610.0,0.51689533]
[1763564267803,0.00016375,91612.0,91611.0,0.04466]
[1763564268004,0.3608,91635.0,91621.0,0.1538842]
[1763564268005,0.1092151,91629.0,91621.0,0.1538842]
[1763564268206,0.3608,91635.0,91621.0,0.1538842]
[1763564268405,0.1092138,91630.0,91621.0,0.1538842]
[1763564268913,0.1092175,91627.0,91621.0,0.1538842]
[1763564269207,0.07466684,91622.0,91621.0,0.04466]
[1763564269802,0.1555342,91621.0,91620.0,0.00219803]
[1763564270113,0.1555342,91621.0,91620.0,0.13089803]
[1763564270606,0.1555342,91621.0,91620.0,0.15285803]
[1763564271314,0.1555342,91621.0,91620.0,0.10819803]
[1763564271508,0.1555342,91621.0,91620.0,0.13089803]
[1763564271709,0.1565342,91621.0,91620.0,0.10819803]
[1763564272115,0.02411,91621.0,91620.0,0.16588803]
[1763564272711,0.04731,91621.0,91620.0,0.16588803]
[1763564273107,0.001,91621.0,91620.0,0.16588803]
[1763564274314,0.05155684,91622.0,91621.0,0.1538843]
[1763564276609,0.07466684,91622.0,91621.0,0.1538843]
[1763564276809,0.07466684,91622.0,91621.0,0.04466]
[1763564277010,0.09786684,91622.0,91621.0,0.04466]
[1763564277713,0.1555342,91621.0,91620.0,0.00219803]
[1763564277918,0.1555342,91621.0,91620.0,0.15285803]
[1763564278215,0.05155684,91622.0,91621.0,0.1538842]
[1763564280519,0.09786684,91622.0,91620.0,0.10819803]
[1763564280712,0.1555521,91606.0,91604.0,0.05849347]
[1763564280904,0.04631,91601.0,91600.0,0.0007326]
[1763564281107,0.1555581,91601.0,91600.0,0.0453926]
[1763564281512,0.1555581,91601.0,91589.0,0.106]
[1763564281513,0.1535812,91590.0,91589.0,0.1515]
[1763564281818,0.15577923,91590.0,91589.0,0.1515]
[1763564282022,0.15477923,91590.0,91589.0,0.1287]
[1763564282204,0.15477923,91590.0,91589.0,0.106]
[1763564283115,0.15477923,91590.0,91589.0,0.12768]
[1763564283416,0.15477923,91590.0,91589.0,0.15048]
[1763564283417,0.00219803,91590.0,91589.0,0.15048]
[1763564283712,0.00219803,91590.0,91589.0,0.15148]
[1763564284216,0.1092609,91591.0,91589.0,0.15148]
[1763564284217,0.00016375,91599.0,91598.0,0.1537316]
[1763564284517,0.00016375,91599.0,91598.0,0.04448]
[1763564284717,0.04448375,91599.0,91598.0,0.04448]
[1763564284912,0.04448375,91599.0,91598.0,0.02168]
[1763564285313,0.04432,91594.0,91593.0,0.02168]
[1763564285508,0.04432,91594.0,91593.0,0.04448]
[1763564285908,0.1092576,91593.0,91592.0,0.04448]
[1763564286110,0.1525776,91593.0,91592.0,0.15048]
[1763564286313,0.1525776,91593.0,91592.0,0.106]
[1763564286514,0.1515776,91593.0,91592.0,0.106]
[1763564287715,0.1525776,91593.0,91592.0,0.106]
[1763564288413,0.1525776,91593.0,91590.0,0.0007326]
[1763564288414,0.04432,91591.0,91590.0,0.0007326]
[1763564288614,0.1535848,91587.0,91586.0,0.106]
[1763564289313,0.1435848,91587.0,91586.0,0.106]
[1763564289920,0.1535883,91584.0,91567.0,0.05849347]
[1763564290118,0.1535883,91584.0,91560.0,0.05849347]
[1763564290119,0.1536086,91567.0,91560.0,0.05849347]
[1763564290318,0.5144086,91567.0,91556.0,0.10004]
[1763564290818,0.5144086,91567.0,91553.0,0.1093051]
[1763564291024,0.02144,91552.0,91551.0,0.1309865]
[1763564291224,0.1536277,91551.0,91550.0,0.0224126]
[1763564291516,0.04432,91551.0,91550.0,0.0452126]
[1763564292124,0.04332,91551.0,91550.0,0.0452126]
[1763564293022,0.02044,91551.0,91550.0,0.0452126]
[1763564293416,0.02044,91551.0,91550.0,0.0462126]
[1763564293617,0.4700994,91559.0,91550.0,0.0027326]
[1763564293817,0.02144,91555.0,91554.0,0.1537836]
[1763564294018,0.04432,91555.0,91554.0,0.04448]
[1763564294218,0.04432,91555.0,91552.0,0.1093062]
[1763564294219,0.04432,91551.0,91550.0,0.002]
[1763564294421,0.5144277,91551.0,91550.0,0.002]
[1763564294923,0.40512,91551.0,91550.0,0.0017326]
[1763564295226,0.40512,91551.0,91550.0,0.0027326]
[1763564295818,0.40512,91551.0,91550.0,0.0017326]
[1763564296013,0.40512,91551.0,91550.0,0.0007326]
[1763564296223,0.40512,91551.0,91547.0,0.106]
[1763564296224,0.04332,91548.0,91547.0,0.106]
[1763564296722,0.1536373,91543.0,91542.0,0.00016384]
[1763564296916,0.5144373,91543.0,91542.0,0.00016384]
[1763564297116,0.40512,91543.0,91542.0,0.00016384]
[1763564297518,0.5144373,91543.0,91542.0,0.00016384]
[1763564298120,0.40512,91543.0,91542.0,0.10948234]
[1763564299028,0.04432,91527.0,91526.0,0.00041143]
[1763564299217,0.04432,91527.0,91526.0,0.04489143]
[1763564299218,0.5144564,91527.0,91526.0,0.04489143]
[1763564299422,0.5144564,91527.0,91526.0,0.02209143]
[1763564299623,0.40512,91527.0,91526.0,0.15422903]
[1763564300332,0.3608,91527.0,91526.0,0.15422903]
[1763564300722,0.3608,91527.0,91526.0,0.15522903]
[1763564301127,0.3608,91527.0,91526.0,0.15622903]
[1763564301919,0.00219803,91530.0,91529.0,0.153814]
[1763564302331,0.04651803,91530.0,91529.0,0.04448]
[1763564303230,0.04651803,91530.0,91529.0,0.04548]
[1763564303832,0.04685803,91530.0,91529.0,0.154814]
[1763564304234,0.04685803,91530.0,91529.0,0.155814]
[1763564304436,0.00219803,91530.0,91529.0,0.155814]
[1763564305530,0.04779803,91530.0,91529.0,0.155814]
[1763564306425,0.00219803,91530.0,91529.0,0.155814]
[1763564307130,0.00219803,91530.0,91529.0,0.04648]
[1763564307334,0.02457803,91530.0,91529.0,0.04648]
[1763564307635,0.04779803,91530.0,91529.0,0.04648]
[1763564308333,0.04779803,91530.0,91529.0,0.02368]
[1763564308837,0.04779803,91530.0,91529.0,0.002]
[1763564309130,0.04779803,91530.0,91529.0,0.02511]
[1763564309327,0.04779803,91530.0,91529.0,0.04704]
[1763564311934,0.00219803,91530.0,91529.0,0.04704]
[1763564313634,0.3608,91535.0,91534.0,0.155288]
[1763564314434,0.00016384,91536.0,91535.0,0.04596]
[1763564314636,0.3608,91555.0,91554.0,0.1324641]
[1763564314834,0.3608,91555.0,91554.0,0.1552641]
[1763564315027,0.3608,91562.0,91561.0,0.1552558]
[1763564315233,0.40344,91575.0,91574.0,0.02316]
[1763564315633,0.1519239,91571.0,91570.0,0.0007326]
[1763564316030,0.04264,91571.0,91570.0,0.0007326]
[1763564316930,0.001,91575.0,91574.0,0.1552403]
[1763564317743,0.3608,91595.0,91583.0,0.1552295]
[1763564317935,0.07223732,91610.0,91605.0,0.02316]
[1763564317936,0.04291291,91606.0,91605.0,0.02316]
[1763564318133,0.04264,91601.0,91600.0,0.1559419]
[1763564318329,0.00027291,91606.0,91605.0,0.04596]
[1763564318544,0.02144291,91606.0,91605.0,0.04596]
[1763564318746,0.04291291,91606.0,91605.0,0.04596]
[1763564319048,0.04264,91601.0,91596.0,0.00016375]
[1763564319234,0.40344,91597.0,91596.0,0.00016375]
[1763564319540,0.04683803,91600.0,91599.0,0.04486]
[1763564320137,0.00219803,91600.0,91599.0,0.04486]
[1763564320730,0.00219803,91600.0,91599.0,0.40566]
[1763564321249,0.00027291,91606.0,91605.0,0.1541033]
[1763564321434,0.00127291,91606.0,91605.0,0.1541033]
[1763564322037,0.00027291,91606.0,91605.0,0.1541033]
[1763564322639,0.00127291,91606.0,91605.0,0.1541033]
[1763564322834,0.00016375,91615.0,91614.0,0.1092326]
[1763564323048,0.00016375,91615.0,91614.0,0.1540926]
[1763564323249,0.00016375,91615.0,91614.0,0.2600926]
[1763564323546,0.38235,91635.0,91634.0,0.04486]
[1763564323742,0.04464,91631.0,91630.0,0.0007326]
[1763564324342,0.04464,91627.0,91626.0,0.106]
[1763564324548,0.40544,91627.0,91626.0,0.106]
[1763564324749,0.1538631,91622.0,91621.0,0.00016375]
[1763564325245,0.1538631,91622.0,91621.0,0.02211375]
[1763564325546,0.1538631,91622.0,91621.0,0.04502375]
[1763564325847,0.1548631,91622.0,91621.0,0.04502375]
[1763564326050,0.04564,91622.0,91621.0,0.04502375]
[1763564326238,0.001,91622.0,91621.0,0.04502375]
[1763564326748,0.001,91622.0,91621.0,0.00016375]
[1763564326749,0.04664,91622.0,91621.0,0.00016375]
[1763564327250,0.002,91622.0,91621.0,0.04502375]
[1763564327443,0.3608,91635.0,91634.0,0.04486]
[1763564327634,0.40544,91635.0,91634.0,0.04486]
[1763564328548,0.40744,91635.0,91634.0,0.04486]
[1763564328958,0.40544,91635.0,91634.0,0.04486]
[1763564329142,0.40844,91635.0,91634.0,0.04486]
[1763564329343,0.04464,91631.0,91630.0,0.0226826]
[1763564329748,0.04464,91631.0,91630.0,0.1548061]
[1763564329945,0.003,91635.0,91634.0,0.04486]
[1763564330251,0.3608,91665.0,91664.0,0.154033]
[1763564330550,0.04464,91670.0,91665.0,0.1091714]
[1763564330746,0.38235,91666.0,91665.0,0.02195]
[1763564330948,0.04464,91661.0,91660.0,0.0007326]
[1763564331949,0.04464,91661.0,91660.0,0.0455926]
[1763564332258,0.02255,91661.0,91660.0,0.0455926]
[1763564332440,0.04564,91661.0,91660.0,0.0007326]
[1763564332946,0.04464,91652.0,91651.0,0.10608364]
[1763564333351,0.1538273,91652.0,91651.0,0.10608364]
[1763564333554,0.1538273,91652.0,91651.0,0.15094364]
[1763564333856,0.3608,91653.0,91652.0,0.1540473]
[1763564334249,0.1091779,91660.0,91659.0,0.02195]
[1763564334451,0.13292593,91660.0,91659.0,0.04486]
[1763564334643,0.15601593,91660.0,91659.0,0.04486]
[1763564334854,0.15601593,91660.0,91651.0,0.10608364]
[1763564334855,0.1538273,91652.0,91651.0,0.12803364]
[1763564335157,0.04464,91652.0,91651.0,0.12803364]
[1763564335858,0.04464,91652.0,91651.0,0.15094364]
[1763564336546,0.04464,91652.0,91651.0,0.10608364]
[1763564337146,0.04464,91652.0,91651.0,0.15094364]
[1763564337147,0.02155,91652.0,91651.0,0.15094364]
[1763564338357,0.3608,91655.0,91654.0,0.04486]
[1763564338550,0.38235,91655.0,91654.0,0.04486]
[1763564339051,0.40544,91655.0,91654.0,0.04486]
[1763564339358,0.04464,91652.0,91651.0,0.10608364]
[1763564339554,0.05843,91652.0,91651.0,0.10608364]
[1763564340158,0.05843,91652.0,91651.0,0.00016364]
[1763564340951,0.1676304,91641.0,91640.0,0.1092009]
[1763564341152,0.1538404,91641.0,91640.0,0.1099335]
[1763564341352,0.04464,91641.0,91640.0,0.1099335]
[1763564341757,0.04464,91641.0,91640.0,0.1318835]
[1763564341954,0.04464,91641.0,91640.0,0.1543635]
[1763564342150,0.3608,91644.0,91643.0,0.1534581]
[1763564342355,0.00016364,91650.0,91649.0,0.153451]
[1763564342556,0.04800167,91650.0,91649.0,0.153451]
[1763564342759,0.04800167,91650.0,91649.0,0.04426]
[1763564342955,0.00236167,91650.0,91649.0,0.04426]
[1763564343165,0.02508167,91650.0,91649.0,0.04426]
[1763564343461,0.00236167,91650.0,91649.0,0.04426]
[1763564344054,0.00016364,91650.0,91649.0,0.04426]
[1763564344752,0.00016364,91650.0,91649.0,0.15014]
[1763564346967,0.3608,91665.0,91664.0,0.04426]
[1763564347264,0.3608,91665.0,91663.0,0.013]
[1763564347265,0.3608,91675.0,91674.0,0.1664215]
[1763564347458,0.3608,91684.0,91683.0,0.1534108]
[1763564347664,0.05861732,91710.0,91683.0,0.1534108]
[1763564347665,0.04564,91711.0,91692.0,0.013]
[1763564347869,0.07762013,91733.0,91719.0,0.1091076]
[1763564347870,0.04564,91720.0,91719.0,0.1091076]
[1763564348056,0.00219803,91720.0,91719.0,0.04426]
[1763564348456,0.109098,91728.0,91725.0,0.04426]
[1763564348657,0.02272,91721.0,91720.0,0.0007326]
[1763564348858,0.38352,91721.0,91720.0,0.0449926]
[1763564349063,0.40644,91721.0,91720.0,0.0007326]
[1763564349453,0.04564,91717.0,91716.0,0.00016354]
[1763564350260,0.40644,91717.0,91716.0,0.00016354]
[1763564350763,0.40744,91717.0,91716.0,0.00016354]
[1763564351466,0.40844,91717.0,91716.0,0.00016354]
[1763564352165,0.40744,91717.0,91716.0,0.00016354]
[1763564352366,0.40744,91717.0,91716.0,0.04442354]
[1763564352367,0.001,91717.0,91716.0,0.04442354]
[1763564352759,0.00219803,91720.0,91719.0,0.04426]
[1763564353765,0.00219803,91720.0,91719.0,0.40506]
[1763564353967,0.00027255,91726.0,91725.0,0.1533607]
[1763564355271,0.00127255,91726.0,91725.0,0.1533607]
[1763564355770,0.40644,91749.0,91728.0,0.013]
[1763564355962,0.40644,91749.0,91740.0,0.0007326]
[1763564356268,0.04564,91747.0,91742.0,0.1090801]
[1763564356472,0.02272,91746.0,91745.0,0.1090761]
[1763564356764,0.3608,91749.0,91740.0,0.0007326]
[1763564356765,0.04564,91741.0,91740.0,0.0007326]
[1763564356971,0.3608,91741.0,91740.0,0.0449926]
[1763564357171,0.40644,91741.0,91740.0,0.0007326]
[1763564358270,0.3608,91741.0,91740.0,0.0449926]
[1763564358662,0.40644,91741.0,91740.0,0.0449926]
[1763564359059,0.3608,91741.0,91740.0,0.0449926]
[1763564359265,0.3618,91741.0,91740.0,0.0449926]
[1763564359471,0.3628,91741.0,91740.0,0.0449926]
[1763564359657,0.002,91741.0,91740.0,0.0579926]
[1763564362671,0.1090735,91748.0,91747.0,0.02178]
[1763564362672,0.1317935,91748.0,91747.0,0.02178]
[1763564362874,0.04564,91748.0,91747.0,0.04426]
[1763564363263,0.04564,91737.0,91736.0,0.00016354]
[1763564363468,0.04564,91737.0,91736.0,0.23679114]
[1763564363668,0.04564,91737.0,91736.0,0.25927114]
[1763564364073,0.00219803,91740.0,91739.0,0.153344]
[1763564364367,0.38352,91747.0,91746.0,0.1308557]
[1763564364565,0.38352,91747.0,91746.0,0.1540457]
[1763564364874,0.40667,91747.0,91746.0,0.1540457]
[1763564365070,0.40667,91747.0,91746.0,0.02178]
[1763564365369,0.04638,91744.0,91743.0,0.1308391]
[1763564365569,0.04638,91744.0,91743.0,0.02176]
[1763564365774,0.04638,91741.0,91740.0,0.0456826]
[1763564366870,0.1090793,91743.0,91736.0,0.10592354]
[1763564366871,0.1554664,91737.0,91736.0,0.00016354]
[1763564367170,0.1554795,91726.0,91725.0,0.10576]
[1763564367374,0.1554795,91726.0,91720.0,0.0007326]
[1763564367375,0.04638,91721.0,91720.0,0.0007326]
[1763564367671,0.04638,91710.0,91709.0,0.01107818]
[1763564367876,0.02542803,91710.0,91709.0,0.2598297]
[1763564368577,0.00219803,91710.0,91709.0,0.2598297]
[1763564368765,0.02542803,91710.0,91709.0,0.2598297]
[1763564368967,0.02542803,91710.0,91709.0,0.2608297]
[1763564369377,0.04857803,91710.0,91709.0,0.15171]
[1763564370164,0.00219803,91710.0,91709.0,0.15171]
[1763564370371,0.3608,91716.0,91715.0,0.1540625]
[1763564370771,0.00016354,91719.0,91718.0,0.154059]
[1763564372477,3.54e-06,91719.0,91718.0,0.154059]
[1763564372972,3.54e-06,91719.0,91718.0,0.155059]
[1763564373186,3.54e-06,91719.0,91718.0,0.156059]
[1763564374082,3.54e-06,91719.0,91718.0,0.155059]
[1763564374383,3.54e-06,91719.0,91718.0,0.154059]
[1763564374881,3.54e-06,91719.0,91718.0,0.155059]
[1763564375583,3.54e-06,91719.0,91718.0,0.156059]
[1763564376887,0.0511,91762.0,91747.0,0.1090745]
[1763564377073,0.04415,91758.0,91757.0,0.1090618]
[1763564377281,0.07269486,91758.0,91748.0,0.10576]
[1763564377575,0.07269486,91758.0,91750.0,0.0007326]
[1763564377576,0.04415,91751.0,91750.0,0.0007326]
[1763564377970,0.04415,91751.0,91750.0,0.1064926]
[1763564378171,0.0688281,91751.0,91750.0,0.1064926]
[1763564378488,0.07273271,91751.0,91750.0,0.1064926]
[1763564378870,0.04905461,91751.0,91750.0,0.1064926]
[1763564379077,0.05005461,91751.0,91750.0,0.1064926]
[1763564379378,0.07473479,91751.0,91750.0,0.0007326]
[1763564379589,0.07473479,91751.0,91750.0,0.0433426]
[1763564379771,0.07373479,91751.0,91750.0,0.0433426]
[1763564379971,0.00016354,91760.0,91759.0,0.1516703]
[1763564380178,0.04415,91778.0,91777.0,0.1090383]
[1763564380378,0.06881802,91778.0,91777.0,0.1090389]
[1763564381174,0.001,91778.0,91777.0,0.1516489]
[1763564381679,0.00219803,91780.0,91777.0,0.1516489]
[1763564381872,0.00219803,91780.0,91779.0,0.04261]
[1763564382478,0.00219803,91780.0,91770.0,0.10572]
[1763564382479,0.04415,91771.0,91770.0,0.10572]
[1763564382681,0.04415,91771.0,91770.0,0.1279326]
[1763564382880,0.1531959,91771.0,91770.0,0.1279326]
[1763564383083,0.04415,91771.0,91770.0,0.1490626]
[1763564383584,0.04415,91771.0,91770.0,0.0433426]
[1763564383784,0.3608,91774.0,91773.0,0.04261]
[1763564383988,0.04415,91771.0,91770.0,0.1064526]
[1763564384187,0.04515,91771.0,91770.0,0.1064526]
[1763564384388,0.1541959,91771.0,91770.0,0.1064526]
[1763564384584,0.1541959,91771.0,91770.0,0.0007326]
[1763564384791,0.04415,91769.0,91768.0,0.00016343]
[1763564385083,0.04415,91769.0,91738.0,0.1090849]
[1763564385084,0.04415,91751.0,91749.0,0.1090709]
[1763564385291,0.04415,91750.0,91749.0,0.1090709]
[1763564385481,0.15541893,91750.0,91749.0,0.10572]
[1763564385686,0.04415,91742.0,91741.0,0.36090414]
[1763564385888,0.04415,91742.0,91741.0,0.12730414]
[1763564386183,0.04415,91742.0,91741.0,0.00010414]
[1763564387291,0.06879769,91742.0,91741.0,0.00010414]
[1763564387897,0.06879769,91742.0,91741.0,0.00110414]
[1763564388198,0.06879769,91742.0,91741.0,4.14e-06]
[1763564388391,0.06879769,91742.0,91735.0,0.10572]
[1763564388392,0.04415,91736.0,91735.0,0.10572]
[1763564388580,0.40495,91736.0,91735.0,0.10572]
[1763564388890,0.40495,91736.0,91735.0,0.1272]
[1763564389087,0.40505414,91736.0,91735.0,0.10572]
[1763564389592,0.00010414,91736.0,91735.0,0.14833]
[1763564389789,0.001,91742.0,91741.0,0.05588]
[1763564389995,0.001,91742.0,91741.0,0.5257616]
[1763564390194,0.00016343,91751.0,91750.0,0.1516809]
[1763564390491,0.00016343,91751.0,91750.0,0.6189335]
[1763564392588,0.00016343,91751.0,91750.0,0.5098626]
[1763564394187,0.02189343,91751.0,91750.0,0.4041426]
[1763564394386,0.02189343,91751.0,91750.0,0.5098626]
[1763564394694,0.02189343,91751.0,91727.0,0.05849347]
[1763564394695,0.04415,91733.0,91732.0,0.51266573]
[1763564394994,0.00219803,91750.0,91745.0,0.1090767]
[1763564395197,0.1090721,91749.0,91741.0,0.1090805]
[1763564395389,0.02173,91748.0,91747.0,0.109074]
[1763564395590,0.02173,91748.0,91747.0,0.151684]
[1763564395783,0.1090798,91743.0,91739.0,0.2147633]
[1763564395983,0.1090798,91743.0,91740.0,0.0222126]
[1763564395984,0.02173,91741.0,91740.0,0.0222126]
[1763564396190,0.40495,91741.0,91740.0,0.0007326]
[1763564397001,0.04415,91733.0,91732.0,0.36196343]
[1763564397297,0.04415,91733.0,91732.0,0.46764343]
[1763564397599,0.04415,91733.0,91732.0,0.46664343]
[1763564397803,0.02173,91733.0,91732.0,0.50925343]
[1763564398005,0.40495,91741.0,91740.0,0.1090828]
[1763564398186,0.40495,91741.0,91740.0,0.1098154]
[1763564398586,0.40495,91741.0,91740.0,0.0007326]
[1763564399290,0.3608,91741.0,91740.0,0.0433426]
[1763564399804,0.00016343,91751.0,91750.0,0.1516809]
[1763564399998,0.00016343,91751.0,91750.0,0.1524135]
[1763564400399,0.109042,91775.0,91773.0,0.04261]
[1763564400595,0.02173,91775.0,91774.0,0.1305224]
[1763564400804,0.02173,91775.0,91774.0,0.1516524]
[1763564401397,0.3608,91778.0,91777.0,0.04261]
[1763564401900,0.04429,91770.0,91766.0,0.1090519]
[1763564402106,0.0222,91767.0,91766.0,0.1316019]
[1763564402398,0.04429,91766.0,91758.0,0.3608]
[1763564402605,0.04429,91766.0,91760.0,0.0007326]
[1763564403102,0.1090787,91744.0,91740.0,0.1090818]
[1763564403295,0.1090924,91732.0,91730.0,0.0007326]
[1763564403500,0.04429,91731.0,91730.0,0.0007326]
[1763564404200,0.3608,91736.0,91735.0,0.1090888]
[1763564404392,0.00236146,91740.0,91739.0,0.109084]
[1763564404595,0.00236146,91740.0,91739.0,0.04388]
[1763564404894,0.01614146,91740.0,91728.0,0.1090968]
[1763564405098,0.383,91732.0,91731.0,0.1090936]
[1763564405304,0.00016343,91740.0,91739.0,0.109084]
[1763564405502,0.00236146,91740.0,91739.0,0.02255]
[1763564405708,0.01614146,91740.0,91733.0,0.1090903]
[1763564405917,0.01614146,91740.0,91736.0,0.1316371]
[1763564405918,0.00236146,91740.0,91736.0,0.1316371]
[1763564406104,0.11144476,91740.0,91736.0,0.02255]
[1763564406304,0.00236146,91740.0,91737.0,0.1090864]
[1763564406609,0.131286,91738.0,91730.0,0.0007326]
[1763564406812,0.0222,91738.0,91734.0,0.1090898]
[1763564407311,0.00236146,91740.0,91738.0,0.1090845]
[1763564407807,0.00236146,91740.0,91730.0,0.0007326]
[1763564407808,0.0222,91734.0,91733.0,0.1090909]
[1763564408000,0.04429,91731.0,91730.0,0.1098273]
[1763564408715,0.04429,91731.0,91730.0,0.0007326]
[1763564408916,0.3608,91736.0,91734.0,0.1090897]
[1763564409116,0.04429,91731.0,91730.0,0.0007326]
[1763564409914,0.04429,91731.0,91730.0,0.1098273]
[1763564410616,0.00016343,91740.0,91730.0,0.1098273]
[1763564410617,0.00016343,91740.0,91739.0,0.152964]
[1763564410815,0.3608,91753.0,91752.0,0.1529485]
[1763564411017,0.383,91753.0,91752.0,0.1529485]
[1763564411220,0.3346176,91753.0,91752.0,0.1529485]
[1763564411430,0.3608,91764.0,91763.0,0.1529355]
[1763564411716,0.05861732,91788.0,91763.0,0.1529355]
[1763564411717,0.3608,91782.0,91773.0,0.1315934]
[1763564411922,0.383,91782.0,91781.0,0.1090341]
[1763564412312,0.3608,91782.0,91781.0,0.04388]
[1763564412513,0.00010742,91791.0,91790.0,0.1090234]
[1763564412818,0.00010742,91791.0,91790.0,0.0446126]
[1763564413017,0.04439742,91791.0,91790.0,0.0007326]
[1763564414112,0.04429,91773.0,91772.0,0.00016343]
[1763564414312,0.04429,91773.0,91772.0,0.10584343]
[1763564415020,0.04429,91773.0,91772.0,0.00016343]
[1763564416614,0.04429,91773.0,91758.0,0.10568]
[1763564416615,0.04429,91759.0,91758.0,0.10568]
[1763564417120,0.1090755,91747.0,91743.0,0.05849347]
[1763564417323,0.1090755,91747.0,91742.0,0.37437]
[1763564417324,0.1312756,91747.0,91746.0,0.1090749]
[1763564417625,0.00219803,91750.0,91749.0,0.1529521]
[1763564418025,0.00016343,91756.0,91755.0,0.04388]
[1763564418219,0.3608,91774.0,91771.0,0.109045]
[1763564418419,0.3608,91774.0,91771.0,0.1090456]
[1763564418621,0.1090437,91773.0,91760.0,0.00219803]
[1763564418823,0.0222,91767.0,91766.0,0.1090519]
[1763564419024,0.0222,91767.0,91755.0,0.01357]
[1763564419329,0.1533418,91767.0,91766.0,0.1090508]
[1763564419525,0.1090544,91764.0,91756.0,0.10568]
[1763564419824,0.1090517,91767.0,91756.0,0.10568]
[1763564420022,0.0222,91762.0,91760.0,0.00219803]
[1763564420322,0.1090578,91761.0,91760.0,0.11125663]
[1763564420522,0.1090568,91762.0,91760.0,0.00219803]
[1763564420729,0.00010742,91770.0,91767.0,0.10905]
[1763564420922,0.00010742,91770.0,91760.0,0.00219803]
[1763564421125,0.1090504,91768.0,91760.0,0.00219803]
[1763564421625,0.3608,91766.0,91765.0,0.04388]
[1763564423124,0.00010742,91770.0,91769.0,0.1090483]
[1763564423321,0.00010742,91770.0,91769.0,0.1315983]
[1763564423726,0.00010742,91770.0,91769.0,0.1529283]
[1763564423932,0.00010742,91770.0,91769.0,0.5137283]